bitfinex/quotes_SOLUSD_20230103
["timestamp","ask_amount","ask_price","bid_price","bid_amount"]
[1672784363914,110.277,13.179,13.166,20.0]
[1672784364344,110.277,13.179,13.167,47.2989126]
[1672784364543,110.277,13.179,13.167,46.7989126]
[1672784364755,110.277,13.179,13.168,39.02881312]
[1672784364968,110.277,13.179,13.168,86.28439239]
[1672784365190,110.277,13.179,13.169,91.00149774]
[1672784365384,56.93,13.186,13.17,20.0]
[1672784365597,108.1609,13.185,13.17,111.00149774]
[1672784365804,56.94,13.184,13.171,87.23276307]
[1672784366016,172.78457386,13.194,13.171,87.23276307]
[1672784366220,172.78457386,13.194,13.172,107.23276307]
[1672784366432,7.73367386,13.193,13.172,87.23276307]
[1672784366650,56.9,13.192,13.173,107.23276307]
[1672784366967,64.63367386,13.192,13.173,107.23276307]
[1672784367183,64.63367386,13.192,13.173,20.0]
[1672784367398,64.63367386,13.192,13.168,119.71276307]
[1672784369058,64.63367386,13.192,13.168,107.23276307]
[1672784370111,56.9,13.192,13.169,43.74591847]
[1672784370445,264.6,13.192,13.17,20.0]
[1672784370635,56.91,13.191,13.17,128.2921]
[1672784370843,56.91,13.191,13.171,88.61942974]
[1672784371055,56.91,13.191,13.172,20.0]
[1672784371272,56.91,13.191,13.172,108.61942974]
[1672784371491,56.91,13.191,13.173,88.61942974]
[1672784371700,56.91,13.191,13.174,20.0]
[1672784371905,56.91,13.191,13.174,108.61942974]
[1672784372230,56.91,13.191,13.175,88.61942974]
[1672784372648,108.1609,13.194,13.176,108.61942974]
[1672784373188,108.1609,13.194,13.177,154.97351431]
[1672784373374,108.1609,13.194,13.178,20.0]
[1672784373584,108.1609,13.194,13.178,135.94470119]
[1672784373797,108.1609,13.194,13.179,115.94470119]
[1672784374122,108.1609,13.194,13.18,135.94470119]
[1672784374531,108.1609,13.194,13.181,115.94470119]
[1672784374768,108.1609,13.194,13.182,20.0]
[1672784375072,108.1609,13.194,13.182,135.94470119]
[1672784375272,108.1609,13.194,13.183,115.94470119]
[1672784375486,108.1609,13.194,13.184,20.0]
[1672784375683,108.1609,13.194,13.184,135.94470119]
[1672784375905,43.0918906,13.201,13.185,115.94470119]
[1672784376106,43.0918906,13.201,13.186,20.0]
[1672784376317,43.0918906,13.201,13.186,135.94470119]
[1672784376527,56.87,13.2,13.186,20.0]
[1672784376741,56.89,13.194,13.186,20.0]
[1672784376958,56.89,13.194,13.18,20.0]
[1672784377166,56.87,13.2,13.18,20.0]
[1672784377382,56.87,13.2,13.179,52.48706316]
[1672784377697,56.87,13.2,13.18,52.48706316]
[1672784377890,56.87,13.2,13.179,45.2493715]
[1672784378416,56.87,13.2,13.179,97.73643466]
[1672784379159,56.87,13.2,13.18,20.0]
[1672784379589,56.87,13.2,13.181,52.48706316]
[1672784379804,56.87,13.2,13.182,20.0]
[1672784380315,108.4634,13.199,13.182,20.0]
[1672784380523,56.88,13.198,13.182,20.0]
[1672784381885,108.4634,13.199,13.182,20.0]
[1672784383906,108.4634,13.199,13.182,72.48706316]
[1672784388225,108.4634,13.199,13.182,20.0]
[1672784388435,108.4634,13.199,13.178,20.0]
[1672784388632,108.4634,13.199,13.181,52.48706316]
[1672784388948,108.4634,13.199,13.182,20.0]
[1672784389364,108.4634,13.199,13.182,72.48706316]
[1672784390120,56.88,13.198,13.182,20.0]
[1672784390311,56.88,13.198,13.18,20.0]
[1672784390522,56.88,13.198,13.179,20.0]
[1672784392435,56.88,13.198,13.176,20.0]
[1672784394022,165.3334,13.199,13.176,20.0]
[1672784397670,165.3334,13.199,13.177,45.2493715]
[1672784397998,108.4634,13.199,13.178,72.48706316]
[1672784398525,108.4634,13.199,13.179,52.48706316]
[1672784398733,108.4634,13.199,13.18,20.0]
[1672784398937,108.4634,13.199,13.18,65.2493715]
[1672784399154,108.4634,13.199,13.181,97.73643466]
[1672784399363,108.4634,13.199,13.182,20.0]
[1672784400205,108.4634,13.199,13.182,72.48706316]
[1672784402517,108.4634,13.199,13.182,20.0]
[1672784402726,264.6,13.198,13.174,116.296]
[1672784402929,10.39957474,13.195,13.174,116.296]
[1672784403785,56.89,13.194,13.174,116.296]
[1672784404180,7.73584804,13.193,13.174,116.296]
[1672784404409,56.9,13.192,13.174,116.296]
[1672784404724,7.73584804,13.191,13.174,116.296]
[1672784404933,56.91,13.19,13.174,116.224]
[1672784405125,56.91,13.19,13.175,20.0]
[1672784405334,7.73584804,13.189,13.175,20.0]
[1672784406830,76.92,13.188,13.163,2.6637267]
[1672784407020,112.5312,13.187,13.163,2.6637267]
[1672784407230,20.0,13.186,13.163,100.40016136]
[1672784407449,27.73584804,13.186,13.163,100.40016136]
[1672784407870,20.0,13.186,13.163,100.40016136]
[1672784408084,20.0,13.186,13.164,20.0]
[1672784408514,20.0,13.186,13.165,97.73643466]
[1672784408715,20.0,13.186,13.166,20.0]
[1672784409565,20.0,13.186,13.165,52.48706316]
[1672784410088,27.73584804,13.186,13.165,52.48706316]
[1672784410284,84.66584804,13.186,13.165,52.48706316]
[1672784410926,76.93,13.186,13.165,52.48706316]
[1672784411129,76.93,13.186,13.166,20.0]
[1672784412063,84.66584804,13.186,13.165,20.0]
[1672784412268,76.93,13.186,13.165,20.0]
[1672784412484,84.66584804,13.186,13.165,20.0]
[1672784415014,84.66584804,13.186,13.164,108.1888]
[1672784415231,84.66584804,13.186,13.163,2.6637267]
[1672784417215,84.66584804,13.186,13.164,111.3398]
[1672784417523,84.66584804,13.186,13.165,20.0]
[1672784417945,72.1351,13.185,13.165,20.0]
[1672784418155,56.94,13.184,13.165,20.0]
[1672784418369,47.2181,13.183,13.165,20.0]
[1672784418602,56.94,13.182,13.165,20.0]
[1672784418781,185.1911,13.181,13.164,111.3398]
[1672784418996,104.1681,13.18,13.164,111.3398]
[1672784419201,20.0,13.179,13.163,2.6637267]
[1672784419415,56.96,13.178,13.163,2.6637267]
[1672784419626,67.2181,13.177,13.163,2.6637267]
[1672784419844,56.97,13.176,13.163,2.6637267]
[1672784420056,165.1911,13.175,13.163,2.6637267]
[1672784422361,56.98,13.174,13.163,2.6637267]
[1672784423538,165.1911,13.175,13.163,2.6637267]
[1672784424379,165.1911,13.175,13.163,39.34779739]
[1672784424583,165.1911,13.175,13.163,2.6637267]
[1672784426703,165.1911,13.175,13.163,55.15078986]
[1672784428052,165.1911,13.175,13.163,2.6637267]
[1672784428580,222.1611,13.175,13.163,2.6637267]
[1672784429542,172.92694804,13.175,13.163,2.6637267]
[1672784429756,165.1911,13.175,13.163,2.6637267]
[1672784431836,165.1911,13.175,13.163,55.15078986]
[1672784432065,165.1911,13.175,13.164,20.0]
[1672784432482,165.1911,13.175,13.164,72.48706316]
[1672784434560,165.1911,13.175,13.164,20.0]
[1672784435322,165.1911,13.175,13.163,2.6637267]
[1672784435323,56.98,13.174,13.163,2.6637267]
[1672784435659,165.1911,13.175,13.163,2.6637267]
[1672784437965,165.1911,13.175,13.163,55.15078986]
[1672784438164,165.1911,13.175,13.164,20.0]
[1672784438584,165.1911,13.175,13.165,52.48706316]
[1672784438800,165.1911,13.175,13.166,20.0]
[1672784439019,165.1911,13.175,13.165,43.69700249]
[1672784439229,165.1911,13.175,13.166,20.0]
[1672784440495,165.1911,13.175,13.166,65.2493715]
[1672784442690,165.1911,13.175,13.166,108.94637399]
[1672784442895,165.1911,13.175,13.167,52.48706316]
[1672784445121,165.1911,13.175,13.166,20.0]
[1672784445331,165.1911,13.175,13.163,2.6637267]
[1672784447854,165.1911,13.175,13.164,45.2493715]
[1672784448044,165.1911,13.175,13.165,20.0]
[1672784448376,165.1911,13.175,13.165,72.48706316]
[1672784448578,56.98,13.174,13.165,72.48706316]
[1672784449110,56.98,13.174,13.165,20.0]
[1672784449325,56.98,13.174,13.164,20.0]
[1672784449938,56.98,13.174,13.164,72.48706316]
[1672784450475,56.98,13.174,13.164,52.48706316]
[1672784451932,56.98,13.174,13.165,43.69700249]
[1672784453835,56.98,13.174,13.165,96.18406565]
[1672784454450,56.98,13.174,13.166,43.69700249]
[1672784455107,56.98,13.174,13.166,96.18406565]
[1672784455712,56.98,13.174,13.163,2.6637267]
[1672784456254,64.71584804,13.174,13.163,2.6637267]
[1672784456465,110.46404804,13.174,13.163,2.6637267]
[1672784462887,102.7282,13.174,13.163,2.6637267]
[1672784477296,102.7282,13.174,13.163,2.5917267]
[1672784484525,155.32774319,13.174,13.163,2.5917267]
[1672784490532,23.9014,13.173,13.163,2.5917267]
[1672784490744,56.99,13.172,13.163,2.5917267]
[1672784492952,47.6449,13.173,13.163,2.5917267]
[1672784494309,47.6449,13.173,13.163,13.67310454]
[1672784496206,47.6449,13.173,13.163,2.5917267]
[1672784496624,39.63919809,13.189,13.164,62.94967571]
[1672784496949,223.9454,13.182,13.165,131.14662699]
[1672784497350,47.6356,13.181,13.166,111.14662699]
[1672784497561,47.6356,13.181,13.167,20.0]
[1672784497769,47.6356,13.181,13.167,131.14662699]
[1672784497979,47.6356,13.18,13.168,154.86197612]
[1672784498413,47.6356,13.18,13.169,158.06864278]
[1672784498818,56.91,13.191,13.17,161.01530945]
[1672784499031,108.8866,13.191,13.171,20.0]
[1672784499252,79.665,13.2,13.172,33.89623157]
[1672784499468,79.665,13.2,13.173,20.0]
[1672784499667,2.7357267,13.195,13.174,37.7804086]
[1672784499876,2.7357267,13.195,13.174,86.66733106]
[1672784500095,2.7357267,13.195,13.175,74.01701662]
[1672784500306,2.7357267,13.195,13.175,185.85361479]
[1672784500502,2.7357267,13.195,13.176,203.63402339]
[1672784500836,2.7357267,13.195,13.177,185.85361479]
[1672784501155,2.7357267,13.195,13.178,165.85361479]
[1672784501549,2.7357267,13.195,13.179,185.85361479]
[1672784501868,2.7357267,13.195,13.18,165.85361479]
[1672784502081,2.7357267,13.195,13.18,154.77223695]
[1672784502413,2.7357267,13.195,13.181,51.86829787]
[1672784504397,56.89,13.194,13.181,54.01701662]
[1672784504830,56.89,13.194,13.178,48.88692246]
[1672784505884,64.62584804,13.194,13.177,54.01701662]
[1672784506699,56.89,13.194,13.177,54.01701662]
[1672784507662,56.89,13.194,13.174,73.5708]
[1672784507864,46.1928,13.193,13.175,74.01701662]
[1672784508073,56.9,13.192,13.177,11.08137784]
[1672784508291,56.9,13.192,13.176,54.01701662]
[1672784508603,56.9,13.192,13.177,20.0]
[1672784509252,64.63584804,13.192,13.177,20.0]
[1672784509866,64.63584804,13.192,13.175,20.0]
[1672784510076,113.09224804,13.192,13.175,20.0]
[1672784510722,113.09224804,13.192,13.174,24.8958]
[1672784510919,20.0,13.191,13.173,54.01701662]
[1672784511125,56.91,13.19,13.164,71.6994]
[1672784511329,20.0,13.189,13.164,71.6994]
[1672784511544,56.92,13.188,13.168,44.67482587]
[1672784511750,20.0,13.187,13.168,44.67482587]
[1672784511965,103.923,13.186,13.168,44.67482587]
[1672784512592,46.993,13.185,13.168,44.67482587]
[1672784513013,46.993,13.185,13.168,158.66014279]
[1672784513451,46.993,13.185,13.169,44.67482587]
[1672784513867,46.993,13.185,13.17,113.98531692]
[1672784514282,46.993,13.185,13.171,158.66014279]
[1672784514607,46.993,13.185,13.172,147.57876495]
[1672784515009,46.993,13.185,13.173,147.57876495]
[1672784515433,46.993,13.185,13.174,147.57876495]
[1672784515856,46.993,13.185,13.175,147.57876495]
[1672784516273,46.993,13.185,13.176,102.90393908]
[1672784516494,46.993,13.185,13.176,144.61457429]
[1672784516705,46.993,13.185,13.177,144.61457429]
[1672784517129,46.993,13.185,13.178,144.61457429]
[1672784517338,22.9822,13.186,13.178,144.61457429]
[1672784517543,22.9822,13.186,13.179,102.90393908]
[1672784517864,20.0,13.187,13.179,102.90393908]
[1672784518285,20.0,13.188,13.179,102.90393908]
[1672784520066,20.0,13.188,13.173,41.71063521]
[1672784520273,68.4043,13.188,13.175,102.90393908]
[1672784520594,70.9848,13.187,13.169,48.1333]
[1672784520812,76.93,13.186,13.163,2.5917267]
[1672784521024,70.3837,13.185,13.166,20.0]
[1672784521231,56.94,13.184,13.166,20.0]
[1672784521430,64.67584804,13.184,13.166,20.0]
[1672784521647,164.59514804,13.183,13.166,20.0]
[1672784521855,56.94,13.182,13.166,20.0]
[1672784522060,47.8536,13.181,13.166,20.0]
[1672784524596,47.8536,13.181,13.167,102.95545508]
[1672784525015,47.8536,13.181,13.168,102.95545508]
[1672784525535,47.8536,13.181,13.169,65.54868654]
[1672784526063,47.8536,13.181,13.169,102.95545508]
[1672784526799,47.8536,13.181,13.17,54.4673087]
[1672784527327,47.8536,13.181,13.171,37.40676854]
[1672784527752,47.8536,13.181,13.171,91.87407724]
[1672784528708,47.8536,13.181,13.172,48.48814638]
[1672784529106,47.8536,13.181,13.173,54.4673087]
[1672784531418,47.8536,13.181,13.169,11.08137784]
[1672784533123,47.8536,13.181,13.169,48.48814638]
[1672784533439,47.8536,13.181,13.17,11.08137784]
[1672784534569,47.8536,13.181,13.17,48.48814638]
[1672784534801,47.8536,13.181,13.17,102.95545508]
[1672784535007,47.8536,13.181,13.171,11.08137784]
[1672784535419,47.8536,13.181,13.172,54.4673087]
[1672784537842,56.92,13.188,13.173,11.08137784]
[1672784538042,235.3141,13.194,13.174,20.0]
[1672784538256,235.3141,13.194,13.174,241.4837087]
[1672784538458,235.3141,13.194,13.175,65.54868654]
[1672784538668,235.3141,13.194,13.176,20.0]
[1672784538885,46.1397,13.193,13.176,85.54868654]
[1672784539205,56.9,13.192,13.177,54.4673087]
[1672784539413,103.0397,13.192,13.177,54.4673087]
[1672784540039,46.1397,13.191,13.177,54.4673087]
[1672784540247,56.91,13.19,13.177,54.4673087]
[1672784540473,103.4098,13.19,13.177,54.4673087]
[1672784540689,46.4998,13.19,13.177,54.4673087]
[1672784541845,46.4998,13.19,13.177,65.54868654]
[1672784542168,46.4998,13.19,13.178,54.4673087]
[1672784542584,46.4998,13.19,13.179,11.08137784]
[1672784542894,46.4998,13.19,13.179,65.54868654]
[1672784543109,2.7357267,13.195,13.18,20.0]
[1672784543315,2.7357267,13.195,13.18,74.85179446]
[1672784543537,2.7357267,13.195,13.181,104.60564983]
[1672784543736,2.7357267,13.195,13.182,20.0]
[1672784543949,2.7357267,13.195,13.182,124.60564983]
[1672784544268,2.7357267,13.195,13.183,104.60564983]
[1672784544473,2.7357267,13.195,13.184,20.0]
[1672784544672,2.7357267,13.195,13.184,69.75385537]
[1672784544887,2.7357267,13.195,13.184,63.77041662]
[1672784545101,2.7357267,13.195,13.184,20.0]
[1672784545308,2.7357267,13.195,13.181,20.0]
[1672784549502,2.7357267,13.195,13.18,20.0]
[1672784550871,2.7357267,13.195,13.179,48.2959]
[1672784551087,218.5045,13.194,13.179,48.2959]
[1672784551302,47.557,13.193,13.179,48.2959]
[1672784551512,56.9,13.192,13.179,48.2959]
[1672784551728,56.9,13.192,13.177,22.5511]
[1672784551946,104.457,13.192,13.174,118.8449]
[1672784552150,47.557,13.191,13.174,118.8449]
[1672784552364,56.91,13.19,13.174,118.8449]
[1672784552568,104.467,13.19,13.174,118.8449]
[1672784552891,47.557,13.19,13.174,118.8449]
[1672784554134,47.557,13.19,13.175,20.0]
[1672784556867,47.557,13.19,13.175,31.08137784]
[1672784557495,56.91,13.189,13.175,31.08137784]
[1672784558360,47.557,13.19,13.175,31.08137784]
[1672784560356,46.7165,13.189,13.175,31.08137784]
[1672784563378,46.7165,13.189,13.176,38.96104854]
[1672784563588,46.7165,13.189,13.177,20.0]
[1672784563818,46.7165,13.189,13.177,80.83523321]
[1672784564028,46.7165,13.189,13.178,11.08137784]
[1672784564467,46.7165,13.189,13.179,41.56104854]
[1672784564762,46.7165,13.189,13.177,69.75385537]
[1672784564960,46.7165,13.189,13.179,11.08137784]
[1672784565901,46.7165,13.189,13.18,49.75385537]
[1672784566117,46.7165,13.189,13.177,20.0]
[1672784566327,46.7165,13.189,13.176,20.0]
[1672784570752,46.7165,13.189,13.172,47.83508311]
[1672784570958,234.7565,13.188,13.17,24.8084]
[1672784571174,46.8647,13.187,13.17,24.8084]
[1672784571372,56.93,13.186,13.17,24.8084]
[1672784571581,66.8647,13.185,13.171,11.08137784]
[1672784572213,48.5466,13.184,13.171,11.08137784]
[1672784572422,48.5466,13.184,13.17,24.8084]
[1672784572646,48.5466,13.183,13.169,47.962]
[1672784572846,163.6914,13.182,13.169,47.962]
[1672784573165,163.6914,13.182,13.169,59.04337784]
[1672784575887,163.6914,13.182,13.17,41.56104854]
[1672784576216,163.6914,13.182,13.171,11.08137784]
[1672784576428,115.1448,13.182,13.172,20.0]
[1672784576623,115.1448,13.182,13.172,117.58893848]
[1672784576836,115.1448,13.182,13.173,11.08137784]
[1672784577041,115.1448,13.182,13.174,20.0]
[1672784577460,46.1346,13.189,13.175,11.08137784]
[1672784577689,112.0132,13.188,13.176,20.0]
[1672784578203,112.0132,13.188,13.177,11.08137784]
[1672784578631,112.0132,13.188,13.178,20.0]
[1672784581894,112.0132,13.188,13.178,31.08137784]
[1672784584619,168.9332,13.188,13.178,20.0]
[1672784584829,168.9332,13.188,13.174,98.83795537]
[1672784585042,20.0,13.187,13.174,49.75385537]
[1672784585239,56.93,13.186,13.171,130.48027784]
[1672784585450,20.0,13.185,13.171,130.48027784]
[1672784585655,103.8832,13.184,13.171,130.48027784]
[1672784586613,103.8832,13.184,13.171,119.3989]
[1672784593145,103.8832,13.184,13.171,130.48027784]
[1672784593356,46.9432,13.184,13.171,130.48027784]
[1672784595665,24.4417,13.183,13.171,130.48027784]
[1672784596294,48.5937,13.183,13.171,130.48027784]
[1672784596934,48.5937,13.183,13.171,119.3989]
[1672784617653,56.94,13.182,13.171,119.3989]
[1672784618260,80.0883,13.182,13.169,24.175]
[1672784618583,23.1483,13.181,13.169,24.175]
[1672784619008,45.8471,13.181,13.169,24.175]
[1672784620899,56.95,13.18,13.169,24.175]
[1672784621427,79.5109,13.18,13.169,24.175]
[1672784621635,20.0,13.179,13.148,38.91656481]
[1672784621950,56.96,13.178,13.159,11.08137784]
[1672784622161,20.0,13.177,13.159,11.08137784]
[1672784622370,160.3053,13.176,13.159,11.08137784]
[1672784622582,20.0,13.175,13.159,11.08137784]
[1672784622898,22.5609,13.174,13.159,11.08137784]
[1672784623304,22.5609,13.173,13.159,11.08137784]
[1672784624057,22.5609,13.173,13.159,35.64347784]
[1672784626997,22.5609,13.173,13.164,11.08137784]
[1672784630239,22.5609,13.173,13.159,48.6103]
[1672784630661,22.5609,13.173,13.161,11.08137784]
[1672784633828,22.5609,13.173,13.164,11.08137784]
[1672784634779,22.5609,13.173,13.159,48.6103]
[1672784635097,22.5609,13.173,13.162,11.08137784]
[1672784640139,22.5609,13.173,13.16,23.7899]
[1672784640665,79.5409,13.173,13.16,23.7899]
[1672784642875,22.5609,13.173,13.16,23.7899]
[1672784643072,22.5609,13.173,13.164,11.08137784]
[1672784643504,22.5609,13.173,13.16,23.7899]
[1672784643813,22.5609,13.173,13.162,11.08137784]
[1672784644009,22.5609,13.173,13.16,23.7899]
[1672784644218,22.5609,13.173,13.161,11.08137784]
[1672784648441,22.5609,13.173,13.164,11.08137784]
[1672784650015,56.97,13.175,13.164,11.08137784]
[1672784650230,114.9738,13.176,13.165,20.0]
[1672784650641,114.9738,13.176,13.166,11.08137784]
[1672784651176,114.9738,13.176,13.167,20.0]
[1672784651584,114.9738,13.176,13.168,11.08137784]
[1672784654410,39.63919809,13.197,13.168,11.08137784]
[1672784654621,159.3607,13.189,13.169,132.48101374]
[1672784654952,24.2899,13.188,13.17,89.16454854]
[1672784655159,24.2899,13.188,13.17,158.97343853]
[1672784655374,24.2899,13.188,13.171,135.45193853]
[1672784655788,24.2899,13.188,13.172,112.23833853]
[1672784656208,24.2899,13.188,13.173,31.08137784]
[1672784660191,24.2899,13.188,13.173,54.90007784]
[1672784662328,24.2899,13.188,13.174,11.08137784]
[1672784662533,24.2899,13.188,13.175,20.0]
[1672784662852,24.2899,13.188,13.176,11.08137784]
[1672784663380,24.2899,13.188,13.177,20.0]
[1672784663777,24.2899,13.188,13.177,31.08137784]
[1672784679256,24.2899,13.188,13.177,89.80888999]
[1672784680397,24.2899,13.188,13.178,103.41029402]
[1672784680603,56.87,13.2,13.179,20.0]
[1672784680813,23.2231,13.197,13.179,215.56054982]
[1672784681020,23.2231,13.197,13.18,69.80888999]
[1672784681350,23.2231,13.197,13.181,126.91558503]
[1672784681771,23.2231,13.197,13.182,58.72751215]
[1672784681986,23.2231,13.197,13.183,20.0]
[1672784682384,23.2231,13.197,13.183,78.72751215]
[1672784682620,23.2231,13.197,13.183,20.0]
[1672784685038,46.2107,13.197,13.183,20.0]
[1672784685868,46.2107,13.197,13.183,68.18807288]
[1672784686705,46.2107,13.197,13.184,11.08137784]
[1672784686916,22.9015,13.196,13.185,20.0]
[1672784687442,22.9015,13.196,13.186,11.08137784]
[1672784687663,22.9015,13.196,13.187,20.0]
[1672784688074,22.9015,13.196,13.188,11.08137784]
[1672784693449,43.0918906,13.201,13.188,11.08137784]
[1672784693657,43.0918906,13.201,13.189,20.0]
[1672784693975,2.67e-05,13.195,13.19,116.2531436]
[1672784694180,2.67e-05,13.195,13.191,20.0]
[1672784694372,2.67e-05,13.195,13.191,88.76888999]
[1672784694587,2.67e-05,13.195,13.192,50.27457292]
[1672784694792,2.67e-05,13.195,13.193,20.0]
[1672784695120,2.67e-05,13.195,13.194,39.19319508]
[1672784695334,2.67e-05,13.195,13.194,20.0]
[1672784695954,2.67e-05,13.195,13.194,31.08137784]
[1672784696280,2.67e-05,13.195,13.194,20.0]
[1672784696470,2.67e-05,13.195,13.193,20.0]
[1672784696688,2.67e-05,13.195,13.192,20.0]
[1672784696898,2.67e-05,13.195,13.193,51.22825361]
[1672784697109,42.5919173,13.201,13.194,20.0]
[1672784697325,56.79,13.217,13.194,20.0]
[1672784697542,214.4012,13.217,13.195,96.4558756]
[1672784697845,56.81,13.214,13.196,20.0]
[1672784698056,126.1268,13.214,13.194,77.68751215]
[1672784698275,69.3168,13.213,13.194,77.68751215]
[1672784698487,56.82,13.212,13.194,128.91576576]
[1672784698700,56.82,13.212,13.195,57.68751215]
[1672784698907,443.2373,13.211,13.196,20.0]
[1672784699134,443.2373,13.211,13.196,71.22825361]
[1672784699340,443.2373,13.211,13.197,108.91576576]
[1672784699552,0.6637267,13.205,13.198,20.0]
[1672784699864,0.6637267,13.205,13.198,77.68751215]
[1672784700083,0.6637267,13.205,13.199,57.68751215]
[1672784701027,0.6637267,13.205,13.198,20.0]
[1672784701215,0.6637267,13.205,13.196,20.0]
[1672784707520,0.6637267,13.205,13.193,116.9983]
[1672784707734,56.85,13.204,13.193,116.9983]
[1672784707955,81.7545,13.204,13.193,116.9983]
[1672784708174,81.7545,13.204,13.186,47.7945]
[1672784708362,165.5724,13.203,13.186,47.7945]
[1672784708573,56.86,13.202,13.186,47.7945]
[1672784708785,49.7238,13.201,13.186,47.7945]
[1672784709091,49.7238,13.201,13.185,109.0038]
[1672784709092,76.87,13.2,13.172,2.6637267]
[1672784709320,149.2544,13.2,13.173,156.7983]
[1672784709536,72.3844,13.199,13.174,47.7945]
[1672784709751,56.88,13.198,13.174,47.7945]
[1672784709961,20.0,13.197,13.174,47.7945]
[1672784710171,56.88,13.196,13.174,47.7945]
[1672784710383,207.366,13.195,13.174,47.7945]
[1672784710591,56.89,13.194,13.174,47.7945]
[1672784710802,46.7423,13.193,13.174,47.7945]
[1672784711435,46.7423,13.192,13.174,47.7945]
[1672784711753,103.6423,13.192,13.174,47.7945]
[1672784711961,46.7423,13.191,13.174,47.7945]
[1672784712686,46.7423,13.19,13.174,47.7945]
[1672784713325,46.7423,13.19,13.175,20.0]
[1672784713964,56.91,13.189,13.175,20.0]
[1672784715324,111.4649,13.188,13.175,20.0]
[1672784715726,56.92,13.187,13.175,20.0]
[1672784716572,158.3036,13.188,13.174,20.0]
[1672784717092,56.92,13.187,13.174,20.0]
[1672784717296,56.92,13.187,13.172,4.6637267]
[1672784717512,20.0,13.186,13.172,4.6637267]
[1672784717717,56.93,13.185,13.172,4.6637267]
[1672784725709,105.4538,13.185,13.172,4.6637267]
[1672784735708,22.9892,13.184,13.172,4.6637267]
[1672784736555,45.7571,13.184,13.172,4.6637267]
[1672784736860,134.9055,13.188,13.173,48.17111562]
[1672784737077,134.9055,13.188,13.174,20.0]
[1672784737274,180.6626,13.188,13.174,31.08137784]
[1672784737487,180.6626,13.188,13.175,11.08137784]
[1672784737696,180.6626,13.188,13.176,20.0]
[1672784738111,180.6626,13.188,13.177,11.08137784]
[1672784738527,180.6626,13.188,13.178,20.0]
[1672784739057,180.6626,13.188,13.178,33.08137784]
[1672784739474,180.6626,13.188,13.178,22.0]
[1672784739685,180.6626,13.188,13.178,2.0]
[1672784744327,180.6626,13.188,13.178,13.08137784]
[1672784746013,180.6626,13.188,13.178,2.0]
[1672784746756,180.6626,13.188,13.178,13.08137784]
[1672784746949,180.6626,13.188,13.178,2.0]
[1672784748944,180.6626,13.188,13.178,13.08137784]
[1672784754002,180.6626,13.188,13.178,2.0]
[1672784754217,180.6626,13.188,13.178,13.08137784]
[1672784755874,56.9,13.192,13.179,49.95236836]
[1672784756091,24.6391,13.192,13.179,49.95236836]
[1672784756300,56.91,13.191,13.18,11.08137784]
[1672784756510,56.91,13.191,13.179,44.28592832]
[1672784756722,105.8408,13.191,13.178,2.0]
[1672784756931,24.6391,13.19,13.178,22.0]
[1672784757142,56.91,13.189,13.178,22.0]
[1672784757359,81.5491,13.189,13.178,22.0]
[1672784772809,81.5491,13.189,13.179,11.08137784]
[1672784773023,24.6391,13.189,13.179,11.08137784]
[1672784773213,81.5491,13.189,13.179,13.08137784]
[1672784773749,81.5491,13.189,13.18,11.08137784]
[1672784774814,81.5491,13.189,13.179,2.0]
[1672784775537,24.6391,13.189,13.179,13.08137784]
[1672784787965,24.6391,13.189,13.18,6.52]
[1672784788367,24.6391,13.189,13.18,17.60137784]
[1672784789540,24.6391,13.189,13.18,19.60137784]
[1672784793219,24.6391,13.189,13.18,2.0]
[1672784797201,76.92,13.188,13.18,2.0]
[1672784797627,22.8428,13.187,13.18,2.0]